[Event "III Menorca Open-A 2024"]
[Site "Ciutadella Menorca"]
[Date "2024.04.07"]
[Round "9.11"]
[White "Albornoz Cabrera, Carlos Daniel"]
[Black "Sokolovsky, Yahli"]
[Result "1-0"]
[ECO "B94"]
[WhiteElo "2603"]
[BlackElo "2490"]
[Annotator "TA"]
[PlyCount "128"]
[EventDate "2024.04.02"]
[EventType "swiss"]
[EventCountry "ESP"]
[SourceTitle "playchess.com"]
[Source "ChessBase"]
[SourceQuality "1"]
[TimeControl "5400+30"]

{[%evp 67,128,43,43,43,43,49,758,710,807,814,814,803,779,784,777,763,729,708,619,431,699,502,516,533,812,819,808,804,760,699,8608,5229,8441,8696,29941,12639,5816,837,760,0,847,0,777,514,2617,2576,2617,2557,2167,2092,1981,1734,5118,1788,29969,5257,29975,29976,29975,29977,29977,29978,29986]} 1. e4 {[%emt 0:00:02]} c5 {[%emt 0:00:06]} 2. Nf3 {[%emt 0:00:03]} d6 {[%emt 0:00:05]} 3. d4 {[%emt 0:00:03]} cxd4 {[%emt 0:00:04]} 4. Nxd4 {[%emt 0:00:03]} Nf6 {[%emt 0:00:06]} 5. Nc3 {[%emt 0:00:03]} a6 {[%emt 0:00:06]} 6. Bg5 {[%emt 0:00:03]} Nbd7 {[%emt 0:00:07]} 7. Bc4 {[%emt 0:00:17]} Qb6 {[%emt 0:00:31]} 8. Bb3 {[%emt 0:00:05]} e6 {[%emt 0:00:20]} 9. Qd2 {[%emt 0:00:30]} Be7 {[%emt 0:00:27]} 10. O-O-O {[%emt 0:00:51]} Nc5 {[%emt 0:01:03]} 11. f3 {[%emt 0:00:04]} Qc7 {[%emt 0:01:42]} 12. g4 {[%emt 0:00:07]} b5 {[%emt 0:00:35]} 13. a3 {[%emt 0:00:06]} Rb8 {[%emt 0:09:02]} 14. Kb1 {[%emt 0:02:27]} Bd7 {[%emt 0:01:07]} 15. Rhe1 {[%emt 0:04:50]} O-O {[%emt 0:29:35]} 16. Bf4 {[%emt 0:03:25]} e5 {[%emt 0:08:07]} 17. g5 {[%emt 0:01:30]} Nh5 {[%emt 0:07:41]} 18. Nd5 {[%emt 0:03:12]} Qd8 {[%emt 0:00:02]} 19. Nf5 {[%emt 0:03:10]} Bxf5 {[%emt 0:00:10]} 20. exf5 {[%emt 0:00:21]} Nxf4 {[%emt 0:00:41]} 21. Nxe7+ {[%emt 0:00:11]} Qxe7 {[%emt 0:00:03]} 22. Qxf4 {[%emt 0:00:05]} Nxb3 {[%emt 0:07:13]} 23. cxb3 {[%emt 0:00:08]} f6 {[%emt 0:03:17]} 24. g6 {[%emt 0:05:41]} hxg6 {[%emt 0:02:06]} 25. fxg6 {[%emt 0:00:46]} f5 {[%emt 0:02:12]} 26. Qg3 {[%emt 0:07:04]} Qe6 {[%emt 0:04:24]} 27. Rg1 {[%emt 0:09:57]} Rf6 {[%emt 0:00:13]} 28. f4 {[%emt 0:22:55]} exf4 {[%emt 0:03:09]} 29. Qg5 {[%emt 0:00:05]} f3 {[%emt 0:01:14]} 30. Qh5 {[%emt 0:02:18]} f2 {[%emt 0:00:49]} 31. Qh7+ {[%emt 0:00:40]} Kf8 {[%emt 0:00:01]} 32. Rgf1 {[%emt 0:00:16]} Rxg6 {[%emt 0:02:53]} 33. Rxf2 {[%emt 0:01:10]} Rh6 {[%emt 0:01:38]} 34. Rxf5+ {[%emt 0:10:37]} Ke8 {[%emt 0:00:06]} 35. Qxg7 {[%emt 0:00:03]} Qxf5+ {[%emt 0:00:14]} 36. Ka2 {[%emt 0:00:01]} Rxh2 $2 {[%emt 0:09:23][%mdl 8192]} (36... Qh7 $14 37. Re1+ Kd8 38. Qf8+ Kc7 39. Re7+ Qxe7 40. Qxe7+ Kc6) 37. Re1+ $18 {[%emt 0:02:56]} (37. Rxd6 $2 Rh1 38. Qg8+ Ke7 $19) (37. Qc7 Rxb2+ 38. Kxb2 Qe5+ 39. Kb1 Qe4+ 40. Ka1 Qe5+ 41. Kb1 Qe4+ 42. Ka1 Qe5+ 43. Kb1 $11) 37... Kd8 {[%emt 0:00:04] [#]} 38. Qe7+ $1 {[%emt 0:00:02]} Kc8 {[%emt 0:00:02]} 39. Qe8+ {[%emt 0:00:36]} (39. Qxd6 $2 Rxb2+ 40. Ka1 Ra2+ (40... Rxb3 41. Qc6+ Kd8 42. Re8#) 41. Kxa2 Qf2+ 42. Kb1 Qxe1+ $19) 39... Kc7 {[%emt 0:00:59]} 40. Re7+ {[%emt 0:00:04]} Kb6 {[%emt 0:00:03]} 41. Qxb8+ {[%emt 0:00:05]} Kc5 {[%emt 0:01:52]} 42. Rc7+ {[%emt 0:06:33]} (42. Qa7+ Kd5 $16) 42... Kd5 {[%emt 0:02:32]} 43. Qa8+ {[%emt 0:03:00]} Ke5 {[%emt 0:00:55]} (43... Kd4 $142 44. Qxa6 Qe5) 44. Qxa6 {[%emt 0:02:38]} Qd3 {[%emt 0:01:35]} 45. Qc8 {[%emt 0:05:52]} Qd2 {[%emt 0:02:37]} 46. Re7+ {[%emt 0:00:27]} Kd4 {[%emt 0:00:19]} 47. Qg4+ {[%emt 0:00:08]} Kc5 {[%emt 0:00:15]} 48. Qg7 {[%emt 0:00:32]} Rf2 {[%emt 0:01:32]} 49. Rb7 {[%emt 0:02:22]} Qd3 {[%emt 0:00:34]} 50. Rc7+ {[%emt 0:01:40]} Kd5 {[%emt 0:00:17]} 51. Qg8+ {[%emt 0:01:08]} Kd4 {[%emt 0:00:53]} 52. Qg4+ {[%emt 0:00:37]} (52. Qh8+ $142 Kd5 53. Qa8+ Ke5 54. Re7+ Kf4 55. Rf7+ Ke3 56. Qe8+ Qe4 57. Qxe4+ (57. Qxb5 $2 Rxf7 58. Qg5+ Rf4 $19) 57... Kxe4 58. Rxf2) 52... Kd5 $18 {[%emt 0:00:42]} 53. Qg8+ {[%emt 0:00:49]} Kd4 {[%emt 0:00:04]} 54. Qg7+ {[%emt 0:00:03]} Kd5 $1 {[%emt 0:00:06]} 55. Rc3 {[%emt 0:00:18]} Qd2 {[%emt 0:00:38]} (55... Qd4 $142 56. Qb7+ Ke6) 56. Rc8 $18 {[%emt 0:00:46]} Rg2 {[%emt 0:01:27]} 57. Qf7+ {[%emt 0:00:49]} Kd4 {[%emt 0:00:12]} 58. Qf6+ {[%emt 0:00:19]} Kd5 {[%emt 0:00:01]} 59. Rb8 {[%emt 0:01:40]} Kc5 {[%emt 0:01:10]} 60. Qh8 {[%emt 0:01:20]} (60. a4 $142 Qe2 61. Rc8+ (61. Rxb5+ Kc6 $18) (61. axb5 Qd2 $18) 61... Kd5 62. Rd8) 60... Rh2 {[%emt 0:00:11]} 61. Qg7 {[%emt 0:00:22]} (61. b4+ $142 Kd5 62. Qg8+ (62. Rxb5+ Kc4 $18) 62... Kd4 63. Qg4+ (63. Rxb5 $2 Qxb2#) 63... Kd3 64. Qg6+ (64. Rxb5 $2 Qxb2#) 64... Ke2 65. Re8+ (65. Rxb5 Qd3 $18) 65... Kf1 66. Qb1+ Kf2 67. Rf8+ (67. Qf5+ Kg1 $18) 67... Ke3 68. Qg1+ Qf2 69. Qg5+ (69. Rxf2 Rxf2 70. Qg5+ Ke4 $18) 69... Kd4 70. Qg7+ (70. Rxf2 Rxf2 71. Qxb5 Rc2 $18) 70... Ke3 71. Qc3+ Ke4 72. Qc6+ (72. Rxf2 Rxf2 73. Qc6+ Kf5 $18) 72... Ke3 73. Re8+ (73. Rxf2 Rxf2 74. Qb6+ Ke2 $18) 73... Kd2 74. Qd5+ (74. Qxb5 Qf7+ 75. b3 Kc3+) (74. Qxd6+ Kc1 $18) 74... Kc1 75. Rc8+ (75. Qxd6 $2 Qxb2#) 75... Qc5 76. Qg5+ (76. bxc5 Rxb2+ 77. Ka1 Rb1+ 78. Ka2 Rb2+ 79. Ka1 Rb1+ 80. Ka2 Rb2+ $11) 76... Kc2 77. bxc5) 61... Qe2 {[%emt 0:00:46]} 62. Rc8+ {[%emt 0:00:55]} Kd5 {[%emt 0:00:06]} 63. Qb7+ {[%emt 0:00:16]} Kd4 {[%emt 0:00:08]} 64. Qb6+ {[%emt 0:00:16]} Kd5 {[%emt 0:01:58]} 1-0

[Event "III Menorca Open-A 2024"]
[Site "Ciutadella Menorca"]
[Date "2024.04.07"]
[Round "9.12"]
[White "Tarhan, Adar"]
[Black "Sanal, Vahap"]
[Result "0-1"]
[ECO "C54"]
[WhiteElo "2446"]
[BlackElo "2565"]
[Annotator "TA"]
[PlyCount "80"]
[EventDate "2024.04.02"]
[EventType "swiss"]
[EventCountry "ESP"]
[SourceTitle "playchess.com"]
[Source "ChessBase"]
[SourceQuality "1"]
[TimeControl "5400+30"]

{[%evp 13,80,16,28,25,19,0,38,0,29,0,0,-22,-4,0,0,-15,-15,-17,-18,-26,-10,-16,0,-77,-102,-107,-99,-103,-87,-82,0,-112,-87,-105,-63,-93,-77,-77,-77,-70,-42,-32,-25,-17,0,-31,-26,-15,-37,-17,-25,-256,-137,-175,-167,-466,-422,-620,-414,-414,-412,-381,-389,-506,-499,-583,-567,-924,-918]} 1. e4 {[%emt 0:00:03]} e5 {[%emt 0:00:14]} 2. Nf3 {[%emt 0:00:05]} Nc6 {[%emt 0:00:09]} 3. Bc4 {[%emt 0:00:04]} Bc5 {[%emt 0:00:12]} 4. c3 {[%emt 0:00:26]} Nf6 {[%emt 0:00:15]} 5. d3 {[%emt 0:00:08]} O-O {[%emt 0:01:16]} 6. O-O {[%emt 0:00:59]} d6 {[%emt 0:00:38]} 7. a4 {[%emt 0:00:46]} a6 {[%emt 0:00:19]} 8. b4 {[%emt 0:00:07]} Ba7 {[%emt 0:00:08]} 9. Be3 {[%emt 0:02:06]} Ne7 {[%emt 0:04:09]} 10. Nbd2 {[%emt 0:01:55] White is slightly better.} Ng6 {[%emt 0:01:17]} 11. Re1 {[%emt 0:01:05]} Bxe3 {[%emt 0:05:37]} 12. fxe3 {[%emt 0:00:18]} a5 {[%emt 0:03:38]} 13. b5 {[%emt 0:01:39]} c6 {[%emt 0:00:55]} 14. bxc6 {[%emt 0:01:10]} bxc6 {[%emt 0:00:03]} 15. Rb1 {[%emt 0:01:38]} d5 {[%emt 0:10:14]} 16. exd5 {[%emt 0:00:40]} cxd5 {[%emt 0:00:13]} 17. Bb5 {[%emt 0:00:24]} Be6 {[%emt 0:03:18]} 18. d4 {[%emt 0:02:17]} (18. c4 $11 {remains equal.}) 18... e4 $36 {[%emt 0:01:53][%mdl 2048] White is under strong pressure.} 19. Ng5 {[%emt 0:00:37]} Bg4 {[%emt 0:01:39]} 20. Be2 {[%emt 0:00:06]} Bd7 {[%emt 0:01:25]} 21. Bb5 {[%emt 0:01:29]} Bg4 {[%emt 0:02:56]} 22. Be2 {[%emt 0:00:06]} Bc8 {[%emt 0:00:12]} 23. c4 {[%emt 0:03:47]} h6 {[%emt 0:00:10]} 24. Nh3 {[%emt 0:00:08]} Bxh3 {[%emt 0:00:05]} 25. gxh3 {[%emt 0:00:04]} dxc4 {[%emt 0:01:53]} 26. Bxc4 {[%emt 0:07:30]} Rc8 {[%emt 0:01:47]} 27. Kh1 {[%emt 0:04:27]} Qd7 {[%emt 0:07:59]} 28. Rg1 {[%emt 0:01:14]} Kh7 {[%emt 0:00:10]} (28... Nh4 {with more complications.} 29. Rb6 Qe7 30. Qe1 Nf3) 29. Rb5 {[%emt 0:01:08]} Qxh3 {[%emt 0:52:16]} 30. Rg3 {[%emt 0:01:10]} Qd7 {[%emt 0:00:30]} 31. Rxa5 {[%emt 1:08:24]} Rc7 {[%emt 0:00:30]} 32. Bb5 $2 {[%emt 0:00:30] [#] This move loses the game for White.} (32. Rg1 $11 {and White stays safe.}) 32... Qf5 {[%emt 0:00:30]} (32... Qd5 $1 $19 {And now ...Rfc8 would win.} 33. Rg2 Rfc8) 33. Qf1 {[%emt 0:00:00] [#]} Nh4 {[%emt 0:00:00]} 34. Qg1 $2 {[%emt 0:00:00]} (34. Rg1) 34... Nh5 35. Rg4 {[%emt 0:01:30]} (35. Rh3 $142 Qxh3 36. Bf1) 35... Nf3 {[%emt 0:00:00]} 36. Nxf3 {[%emt 0:00:00]} Qxf3+ {[%emt 0:02:00]} (36... exf3 37. e4 Qe6 (37... f2 38. exf5 fxg1=Q+ 39. Rxg1 $11) 38. Bf1 $19) 37. Rg2 {[%emt 0:00:00]} Rc2 {[%emt 0:00:00] Prevents Be2} 38. Bd7 {Prevents Rfc8} Nf6 {[%emt 0:01:00] Black is clearly winning.} 39. Bh3 {[%emt 0:02:00]} g6 {[%emt 0:00:30][%cal Oc2d2] Prevents Rf5. aiming for ...Rd2!} 40. Ra7 {[%emt 0:00:00]} Rd2 {[%emt 0:00:30] Weighted Error Value: White=0.61/Black=0.24 (precise) .  Loses game:     	White=1     	---        Mistake:       	White=3     	Black=1      Inaccurate:     	White=6     	Black=5      OK:         	White=14    	Black=13     Best:        	White=1     	Black=4} 0-1

[Event "III Menorca Open-A 2024"]
[Site "Ciutadella Menorca"]
[Date "2024.04.07"]
[Round "9.13"]
[White "Nasuta, Grzegorz"]
[Black "Xiao, Tong(Qd)"]
[Result "1/2-1/2"]
[ECO "B90"]
[WhiteElo "2552"]
[BlackElo "2484"]
[Annotator "RC"]
[PlyCount "48"]
[EventDate "2024.04.02"]
[EventType "swiss"]
[EventCountry "ESP"]
[SourceTitle "playchess.com"]
[Source "ChessBase"]
[SourceQuality "1"]
[TimeControl "5400+30"]

1. e4 {[%emt 0:00:01]} c5 {[%emt 0:00:04]} 2. Nf3 {[%emt 0:00:05]} d6 {[%emt 0:00:05]} 3. d4 {[%emt 0:00:05]} cxd4 {[%emt 0:00:05]} 4. Nxd4 {[%emt 0:00:04]} Nf6 {[%emt 0:00:06]} 5. Nc3 {[%emt 0:00:06]} a6 {[%emt 0:00:05]} 6. f3 {[%emt 0:01:08]} e5 {[%emt 0:00:07]} 7. Nb3 {[%emt 0:00:05]} Be6 {[%emt 0:01:27]} 8. Be3 {[%emt 0:00:15]} h5 {[%emt 0:00:41]} 9. Nd5 {[%emt 0:00:14]} Bxd5 {[%emt 0:00:24]} 10. exd5 {[%emt 0:00:08]} Nbd7 {[%emt 0:00:59]} 11. Qd2 {[%emt 0:00:19]} g6 {[%emt 0:00:16]} 12. O-O-O {[%emt 0:00:34]} Nb6 {[%emt 0:00:37]} 13. Kb1 {[%emt 1:33:56]} Nbxd5 {[%emt 1:32:04]} 14. Bg5 {[%emt 0:00:00]} Be7 {[%emt 0:00:30]} 15. Bd3 {[%emt 0:00:00]} Qc7 {[%emt 0:00:00]} 16. Rhe1 {[%emt 0:01:30]} O-O-O {[%emt 0:01:00]} 17. c4 {[%emt 0:00:30]} Nf4 {[%emt 0:00:30]} 18. Bxf6 {[%emt 0:00:30]} Bxf6 {[%emt 0:00:00]} 19. Be4 {[%emt 0:00:30]} Kb8 {[%emt 0:01:00]} 20. Na5 {[%emt 0:00:00]} d5 {[%emt 0:00:00]} 21. cxd5 {[%emt 0:00:00]} Be7 {[%emt 0:00:00]} 22. Rc1 {[%emt 0:00:00]} Qb6 {[%emt 0:00:00]} 23. Nc4 Qd4 {[%emt 0:02:00]} 24. Qxd4 {[%emt 0:01:09]} exd4 {[%emt 0:00:00]} 1/2-1/2

[Event "III Menorca Open-A 2024"]
[Site "Ciutadella Menorca"]
[Date "2024.04.07"]
[Round "9.14"]
[White "Gorshtein, Ido"]
[Black "Kosakowski, Jakub"]
[Result "1-0"]
[ECO "A20"]
[WhiteElo "2540"]
[BlackElo "2482"]
[Annotator "TA"]
[PlyCount "77"]
[EventDate "2024.04.02"]
[EventType "swiss"]
[EventCountry "ESP"]
[SourceTitle "playchess.com"]
[Source "ChessBase"]
[SourceQuality "1"]
[TimeControl "5400+30"]

{[%evp 9,77,14,19,24,27,14,16,4,27,0,0,0,0,0,58,28,71,34,40,43,41,42,37,30,73,79,89,93,179,127,778,97,92,85,91,95,87,90,114,82,109,78,95,101,97,93,95,102,101,99,104,96,102,110,94,112,100,100,182,183,212,164,250,200,258,252,720,673,826,804]} 1. c4 {[%emt 0:02:21]} e5 {[%emt 0:00:27]} 2. g3 {[%emt 0:00:07]} Nf6 {[%emt 0:00:16]} 3. Bg2 {[%emt 0:00:05]} c6 {[%emt 0:00:25]} 4. Nf3 {[%emt 0:00:09]} e4 {[%emt 0:00:18]} 5. Nd4 {[%emt 0:00:04]} Qb6 {[%emt 0:00:09]} 6. e3 {[%emt 0:00:05]} d5 {[%emt 0:00:40]} 7. Nc3 {[%emt 0:00:03]} Bg4 {[%emt 0:07:00]} 8. Qb3 {[%emt 0:02:31] The position is equal.} Na6 {[%emt 0:05:10]} 9. cxd5 {[%emt 0:02:28]} Qxb3 {[%emt 0:00:34]} 10. axb3 {[%emt 0:00:09]} cxd5 {[%emt 0:00:10]} 11. d3 {[%emt 0:03:19]} Bb4 {[%emt 0:15:42]} (11... exd3 $11 12. h3 Be6) 12. h3 {[%emt 0:04:20]} Bd7 {[%emt 0:03:21]} 13. O-O {[%emt 0:03:28]} exd3 {[%emt 0:04:16]} 14. Rd1 {[%emt 0:00:17]} O-O {[%emt 0:19:07]} 15. g4 {[%emt 0:02:14]} Rfd8 {[%emt 0:13:41]} 16. Rxd3 {[%emt 0:04:07]} Rac8 {[%emt 0:02:58]} 17. Rd1 {[%emt 0:09:37]} (17. Bxd5 Bxc3 (17... Nc5 18. Bc4 $17) 18. Bxb7 Nc5 19. Rxc3 Nxb7 20. Rxa7 Nc5 $17) (17. Nxd5 $6 Nxd5 18. Bxd5 Nc5 $11) 17... Bxc3 {[%emt 0:01:55]} 18. bxc3 {[%emt 0:00:28]} Rc7 {[%emt 0:23:21] [#]} (18... Rxc3 $16 19. Bd2 Rcc8) 19. c4 Rxc4 $2 {[%emt 0:00:00][%mdl 8192]} 20. Bd2 $2 {[%emt 0:00:50]} (20. bxc4 $18 {and the rest is easy.} Re8 21. cxd5 (21. Bxd5 h5 $18)) 20... Rcc8 $16 {[%emt 0:00:00]} 21. Bf1 {[%emt 0:07:15]} Ne4 {[%emt 0:00:00][%cal Oh7h5]} 22. Bxa6 {[%emt 0:03:08]} bxa6 {[%emt 0:00:00]} 23. Rxa6 {[%emt 0:00:11]} h5 {[%emt 0:00:00]} 24. f3 {[%emt 0:00:39]} ({Much less strong is} 24. Rxa7 hxg4 25. hxg4 Ra8 (25... Bxg4 26. f3 $16) 26. Rxa8 Rxa8) 24... Ng5 {[%emt 0:00:00]} 25. Kg2 {[%emt 0:01:25]} ({Don't play} 25. gxh5 Ne6 $14) 25... hxg4 {[%emt 0:00:00]} 26. hxg4 {[%emt 0:00:07][%cal Od2a5]} Ne6 {[%emt 0:00:01]} 27. Ba5 {[%emt 0:05:33]} Re8 {[%emt 0:00:18]} 28. Rxa7 {[%emt 0:00:24]} Nxd4 {[%emt 0:00:15]} 29. Rxd4 {[%emt 0:00:20]} Be6 {[%emt 0:00:21]} 30. b4 {[%emt 0:02:08] White is more active.} Rc2+ {[%emt 0:00:21]} 31. Kg3 {[%emt 0:00:02]} Rb2 {[%emt 0:00:05]} 32. Bb6 {[%emt 0:01:15]} Rb3 {[%emt 0:00:48]} 33. Kf4 {[%emt 0:03:50]} Kh7 {[%emt 0:01:52]} (33... Bc8 $16 {is a better defense.}) 34. Bc5 $18 {[%emt 0:00:46]} Kg6 {[%emt 0:00:15]} 35. Rd2 {[%emt 0:00:50]} Rh8 {[%emt 0:00:02]} (35... Rb8 $142 36. Rd1 Kh7 37. Rh1+ Kg6) 36. Ra6 {[%emt 0:00:20]} Rh1 {[%emt 0:03:06]} 37. Rxd5 {[%emt 0:00:41]} Rf1 $2 {[%emt 0:00:19] [#]} (37... Rh3 38. Rd7 Rh8) 38. Rg5+ {[%emt 0:01:14]} Kh7 {[%emt 0:00:07]} 39. Bd4 {[%emt 0:00:37] Weighted Error Value: White=0.33/Black=0.27 (precise) .  Loses game:     	---       	Black=1      Missed win:     	White=1     	---        Mistake:       	White=1     	Black=5      Inaccurate:     	White=3     	Black=3      OK:         	White=10    	Black=10     Best:        	White=3     	Black=3} 1-0

[Event "III Menorca Open-A 2024"]
[Site "Ciutadella Menorca"]
[Date "2024.04.07"]
[Round "9.15"]
[White "Fernandez, Daniel Howard"]
[Black "Castellanos Rodriguez, Renier"]
[Result "0-1"]
[ECO "B92"]
[WhiteElo "2528"]
[BlackElo "2467"]
[Annotator "TA"]
[PlyCount "92"]
[EventDate "2024.04.02"]
[EventType "swiss"]
[EventCountry "ESP"]
[SourceTitle "playchess.com"]
[Source "ChessBase"]
[SourceQuality "1"]
[TimeControl "5400+30"]

{[%evp 32,92,-12,-25,15,10,8,12,48,28,105,107,104,99,98,71,67,78,66,37,77,85,62,0,95,0,0,0,0,0,0,-27,-25,-52,-40,-56,-47,-103,-94,-93,-98,-102,-91,-453,-439,-650,-219,-210,-200,-29968,-29973,-29963,-1297,-1270,-1222,-29973,-29974,-29974,-29974,-29974,-29974,-5502,-1470]} 1. e4 {[%emt 0:07:26]} c5 {[%emt 0:00:04]} 2. Nf3 {[%emt 0:00:05]} d6 {[%emt 0:03:43]} 3. d4 {[%emt 0:00:13]} cxd4 {[%emt 0:00:05]} 4. Nxd4 {[%emt 0:00:06]} Nf6 {[%emt 0:00:06]} 5. Nc3 {[%emt 0:00:05]} a6 {[%emt 0:00:16]} 6. Be2 {[%emt 0:04:49]} e5 {[%emt 0:03:22]} 7. Nb3 {[%emt 0:05:02]} Be7 {[%emt 0:00:54]} 8. O-O {[%emt 0:00:14]} O-O {[%emt 0:00:38]} 9. Be3 {[%emt 0:09:59]} Be6 {[%emt 0:01:20]} 10. Re1 {[%emt 0:01:13] B92: Sicilian Najdorf: 6 Be2.} Nbd7 {[%emt 0:01:34]} 11. a4 {[%emt 0:03:10]} Qc7 {[%emt 0:01:49]} 12. h3 {[%emt 0:03:09]} Rfc8 $146 {[%emt 0:01:50]} ({Predecessor:} 12... Nb6 13. a5 Nc4 14. Bxc4 Qxc4 15. Bg5 Qc6 16. Nd2 Rfd8 17. Qf3 h6 18. Nf1 {0-1 Bender,I (2212)-Bosnjak,P (2265) CRO-chT1B 28th 2019 (5.24)}) 13. Bg4 {[%emt 0:10:21]} Nxg4 {[%emt 0:06:41]} 14. hxg4 {[%emt 0:00:37]} h6 {[%emt 0:00:09]} 15. f3 {[%emt 0:00:59]} Bh4 {[%emt 0:07:14]} 16. Re2 {[%emt 0:00:31]} Nf6 {[%emt 0:00:27]} 17. Kh2 {[%emt 0:10:55]} Bg5 {[%emt 0:26:01]} 18. Bxg5 $1 {[%emt 0:02:33]} hxg5 {[%emt 0:00:13]} 19. Qd2 {[%emt 0:00:13]} Bc4 {[%emt 0:02:57]} (19... Rd8 {is interesting.} 20. Qxg5 d5 21. exd5 e4+) 20. Ree1 {[%emt 0:01:15]} g6 {[%emt 0:02:33]} (20... Be6 $11 {keeps the balance.}) 21. Rad1 $16 {[%emt 0:01:59]} Rd8 {[%emt 0:03:04]} 22. Qxg5 {[%emt 0:02:10]} Kg7 {[%emt 0:00:04]} 23. Nd2 {[%emt 0:05:56]} (23. Kg3 {is more complex.} Rh8 24. Qd2 Qe7 25. Rh1) 23... Rh8+ {[%emt 0:01:44]} 24. Kg1 {[%emt 0:00:04]} Be6 {[%emt 0:02:43]} 25. Qe3 {[%emt 0:05:28]} Rh4 {[%emt 0:09:19]} 26. Nf1 {[%emt 0:10:38]} Rah8 {[%emt 0:00:26]} 27. Rd2 {[%emt 0:14:50]} (27. Kf2 $14) 27... Rh1+ {[%emt 0:05:00]} 28. Kf2 {[%emt 0:00:00]} Bxg4 $1 {[%emt 0:00:20]} 29. Red1 {[%emt 0:00:00]} Rd8 {[%emt 0:04:04]} 30. Ne2 {[%emt 0:00:00]} Be6 {[%emt 0:01:46]} 31. Qc3 {[%emt 0:00:00]} Qb6+ {[%emt 0:01:43]} 32. Ne3 {[%emt 0:00:00]} Rxd1 $1 {[%emt 0:01:35]} 33. Rxd1 {[%emt 0:00:00]} Rc8 $1 {[%emt 0:00:44]} 34. Qa3 {[%emt 0:00:00]} (34. Qd2 $15) 34... d5 $1 $17 {[%emt 0:02:01]} (34... Rxc2 $6 35. Rxd6 Rc6 36. Rxc6 Qxc6 37. Qc3 $11) 35. a5 {[%emt 0:00:00] [#]} Qa7 $1 {[%emt 0:02:14]} 36. exd5 {[%emt 0:00:00]} Nxd5 {[%emt 0:00:12]} 37. Rd2 $2 {[%emt 0:00:49][%mdl 8192] [#]} (37. Rxd5 $17 {is more resistant.} Bxd5 38. Qd6) 37... Rc3 $1 $19 {[%emt 0:01:16]} 38. bxc3 {[%emt 0:00:02]} (38. Qxc3 $142 Nxc3 39. Nxc3) 38... Nxe3 $2 {[%emt 0:00:47]} (38... Qxe3+ 39. Ke1 Nf4) 39. Ke1 $19 {[%emt 0:00:23]} Nxg2+ {[%emt 0:00:22]} 40. Kd1 $2 {[%emt 0:00:01]} (40. Kf1 $19 Ne3+ (40... Qe3 41. Rd3 $11) 41. Ke1) 40... Qf2 {[%emt 0:00:37]} 41. Kc1 {[%emt 0:00:02]} Qe1+ {[%emt 0:00:14]} (41... Qxf3 $2 42. Qd6 Qe3 43. Qb4 $17) (41... Ne3 $142 42. Kb1 Nc4 (42... Qxf3 $2 43. c4 $19) 43. Qc1 Qc5 (43... Nxd2+ $2 44. Qxd2 Bc4 45. Qd8 $19) (43... Qe3 $2 44. Rd6 $19) 44. Qb2 Nxd2+ (44... Nxb2 $2 45. Kxb2 Qe3 46. Rd3 $19) 45. Kc1 Nc4 (45... Nxf3 $2 46. Qb6 $19) 46. Nd4 Nxb2 47. Nxe6+ fxe6 48. Kxb2 e4 (48... Qxa5 {leads to mate.} 49. c4 Qb4+ 50. Kc1 a5 51. Kd1 a4 52. f4 exf4 53. Ke2 Qxc4+ 54. Kd2 a3 55. Kd1 a2 56. Kd2 a1=Q 57. c3 Qcxc3+ 58. Ke2 Qe3#) (48... Qb5+ {is a self mate.} 49. Ka2 g5 50. Ka3 Qc4 51. Kb2 g4 52. fxg4 e4 53. g5 e3 54. Kc1 Qxc3 55. Kb1 e2 56. Ka2 e1=Q 57. g6 Qea1#) 49. fxe4 g5 (49... Qxa5 {gets mated.} 50. Kc1 g5 51. Kd2 g4 52. Ke2 Qxc3 53. Kf2 Qf3+ 54. Ke1 g3 55. Kd2 g2 56. c3 g1=Q 57. Kc2 Qa1 58. e5 Qfxc3#) 50. Kc1 g4 (50... Qxa5 51. Kd1 g4 52. Ke2 g3 53. Kf3 Qxc3+ 54. Kg2 Qe3 55. Kh3 Qf2 56. e5 g2 57. c4 g1=Q 58. c5 Qfh2#) 51. c4 g3 (51... Qxa5 52. Kd1 g3 53. Ke2 Qh5+ 54. Ke1 g2 55. Kd2 g1=Q 56. Kc3 Qe5+ 57. Kb4 Qb6+ 58. Ka4 Qea5#) 52. Kb2 g2 (52... Qxa5 53. c3 g2 54. c5 Qb5+ 55. Kc2 g1=Q 56. e5 Qg2+ 57. Kd1 Qbf1#) 53. c3 g1=Q (53... g1=R 54. Kb3 Rg2 55. e5 Re2 56. Ka4 Qxc4+ 57. Ka3 Ra2#) 54. e5 Qd1 (54... Qxe5 55. Kc2 Qe2+ 56. Kb3 Qb1+ 57. Ka4 Qea2#) 55. Ka2 Qxa5+ 56. Kb2 Qaa1#) 42. Rd1 $19 {[%emt 0:00:02]} Qxe2 {[%emt 0:00:07]} 43. Rd8 {[%emt 0:06:41]} Ne3 {[%emt 0:01:14]} 44. Qf8+ {[%emt 0:00:08]} Kf6 {[%emt 0:00:04]} 45. Qh8+ {[%emt 0:00:06]} Kf5 {[%emt 0:00:05]} 46. Qh3+ {[%emt 0:00:17]} Kf4 {[%emt 0:01:24]} (46... Kg5 $142 47. Qg3+ Kf5 48. Qh3+ Kf4 49. Qh4+ Kxf3 50. Qh1+ Qg2 51. Qxg2+ Kxg2 52. Rd2+ Kf3) 0-1